Cogmind - Beta 13 @@@ ROGUE MODE // 2024.03.07 @ 22:40:02 Player: darki Result: Destroyed by H-88 Terminator with KE Penetrator Performance ------------- Evolutions (8) 4000 Regions Visited (15) 3000 Robots Destroyed (15) 75 Value Destroyed (636) 636 Prototype IDs (16) 320 Alien Tech Used (1) 200 Bonus (1663) 1663 TOTAL SCORE: 9894 Bonus ------- Follower Combat Kills 312 Entered DSFs 1000 Hacked Protovariant 500 Friendly Fire -149 Cogmind --------- Core Integrity 0/1450 Matter 290/300 Energy 98/100 System Corruption 4% Temperature Cool (0) Movement Core (50) Location -2/Testing Parts ------- > --- POWER (1) -------- (None) > --- PROPULSION (2) --- (None) > --- UTILITY (18) ----- Advanced Terrain Scan Processor Improved Melee Analysis Suite Advanced Melee Analysis Suite Advanced Melee Analysis Suite Graphene Brace Hacking Suite System Shield System Shield Ghost Barrier Improved System Guard > --- WEAPON (2) ------- Nanosword > --- INVENTORY (5) ---- Micro Antimatter Reactor Warp Gun Plasma Lance Peak State ------------ > --- POWER ------------ Micro Antimatter Reactor > --- PROPULSION ------- Improved Antigrav System Improved Antigrav System > --- UTILITY ---------- Terrain Scan Processor Advanced Terrain Scan Processor Improved Melee Analysis Suite Advanced Melee Analysis Suite Advanced Melee Analysis Suite Graphene Brace Hacking Suite Improved Hacking Suite Improved Hacking Suite Improved Hacking Suite System Shield System Shield System Shield Improved System Guard > --- WEAPON ----------- Advanced Remote Datajack Nanosword > --- INVENTORY -------- Micro Antimatter Reactor Improved Antigrav System Warp Gun Nanosword Plasma Lance [Rating: 104] Favorites ----------- Power Micro Nuclear Core Engine Light Ion Engine Power Core Micro Nuclear Core Reactor Micro Antimatter Reactor Propulsion Biomechanical Wings Leg Aluminum Leg Hover Unit Improved Antigrav System Flight Unit Biomechanical Wings Utility Improved Hacking Suite Device Advanced Sensor Array Storage Small Storage Unit Processor Advanced Melee Analysis Suite Hackware Improved Hacking Suite Weapon Makeshift Hammer Energy Gun Backup Laser III Ballistic Gun Assault Rifle Launcher Heavy Missile Launcher Special Weapon Remote Datajack Impact Weapon Makeshift Hammer Slashing Weapon Nanosword Piercing Weapon Plasma Lance Build | -11 -10 -10 -10 -9 -8 -7 -7 -6 -5 -5 -4 -3 -3 -2 -2 ------- Run | Yrd Mat Min Exi Min Mat Fac DSF Fac Fac DSF Fac Res Qua Res Tes Slots Evolved 16 | . . . . . 4 2 . 2 2 . 2 2 . 2 . Power . | . . . . . . . . . . . . . . . . Propulsion . | . . . . . . . . . . . . . . . . Utility 16 | . . . . . 4 2 . 2 2 . 2 2 . 2 . Weapon . | . . . . . . . . . . . . . . . . Parts Attached 64 | . 4 . 3 . 3 4 4 12 . . 3 7 2 12 10 Power 7 | . 1 . . . 1 1 . 2 . . . . . 1 1 Engine 2 | . 1 . . . 1 . . . . . . . . . . Core 3 | . . . . . . 1 . 2 . . . . . . . Reactor 2 | . . . . . . . . . . . . . . 1 1 Propulsion 9 | . 1 . . . . . . 2 . . . . 1 1 4 Treads . | . . . . . . . . . . . . . . . . Leg . | . . . . . . . . . . . . . . . . Wheel . | . . . . . . . . . . . . . . . . Hover 4 | . . . . . . . . . . . . . . . 4 Flight 5 | . 1 . . . . . . 2 . . . . 1 1 . Utility 38 | . . . 2 . 2 3 4 6 . . 3 7 1 8 2 Device 10 | . . . . . 1 . . 3 . . 1 1 1 3 . Storage . | . . . . . . . . . . . . . . . . Processor 13 | . . . 1 . . 3 . 2 . . . 4 . 2 1 Hackware 15 | . . . 1 . 1 . 4 1 . . 2 2 . 3 1 Protection . | . . . . . . . . . . . . . . . . Artifact . | . . . . . . . . . . . . . . . . Weapon 10 | . 2 . 1 . . . . 2 . . . . . 2 3 Energy Gun 1 | . . . . . . . . . . . . . . . 1 Energy Cannon . | . . . . . . . . . . . . . . . . Ballistic Gun 1 | . 1 . . . . . . . . . . . . . . Ballistic Cannon . | . . . . . . . . . . . . . . . . Launcher 1 | . . . . . . . . 1 . . . . . . . Special Weapon 3 | . 1 . . . . . . 1 . . . . . . 1 Impact Weapon 1 | . . . 1 . . . . . . . . . . . . Slashing Weapon 2 | . . . . . . . . . . . . . . 1 1 Piercing Weapon 1 | . . . . . . . . . . . . . . 1 . Special Melee Weapon . | . . . . . . . . . . . . . . . . Unidentified Prototypes 9 | . . . . . 1 1 . 2 . . . . 1 2 2 Parts Lost 36 | . . 2 . . 2 . . 2 . 4 1 3 5 6 11 Power 2 | . . 1 . . . . . . . . . 1 . . . Propulsion 8 | . . . . . 1 . . . . . . . 1 2 4 Utility 21 | . . . . . 1 . . 2 . 3 1 1 4 4 5 Weapon 5 | . . 1 . . . . . . . 1 . 1 . . 2 Highest Loss Streak 10 | . . 2 . . 1 . . 2 . 4 1 2 3 6 10 To Critical Strikes . | . . . . . . . . . . . . . . . . Average Slot Usage (%) 53 | . 38 36 39 57 32 37 55 70 76 74 48 71 64 53 68 Core 1 | . . . . . . . . 4 5 5 5 3 . . . Flight 8 | . 12 14 14 14 . . . 11 11 11 10 9 7 4 1 Device 2 | . . . . . . . . 5 11 11 1 . 2 3 4 Processor 15 | . . . 7 14 9 22 28 18 23 21 10 20 24 17 24 Hackware 17 | . . . 12 14 13 7 17 22 17 17 17 31 28 22 26 Special Weapon 1 | . . 11 . . . . . 5 5 5 . . . . 1 Impact Weapon 2 | . . . 5 14 9 7 7 . . . . . . . . Naked Turns . | . . . . . . . . . . . . . . . . Heaviest Build 16 | 14 14 4 3 3 3 3 3 12 11 11 9 10 2 5 16 Greatest Support 24 | 20 20 4 4 4 4 3 3 12 12 12 12 12 14 14 24 Greatest Overweight (x) 2 | . . . . . . . . . . . . . . . 2 Average Overweight (x) . | . . . . . . . . . . . . . . . . Largest Inventory Capacity 8 | . 8 5 5 5 5 5 5 5 5 5 5 5 5 5 5 Average Capacity 5 | . 5 5 5 5 5 5 5 5 5 5 5 5 5 5 5 Most Carried 6 | . 6 5 5 5 5 5 5 5 4 5 5 5 4 5 5 Average Carried 4 | . 5 5 4 5 5 4 5 3 4 4 4 2 4 3 3 Final Capacity 8 | 8 5 5 5 5 5 5 5 5 5 5 5 5 5 5 5 Final Carried 6 | 6 5 5 5 5 5 5 5 4 4 5 3 4 4 2 3 Class Distribution -------------------- 36% | Mutant 35% | Hacker-Mutant 25% | Wizard-Mutant Dominant Class ---------------- Mutant | -10/Materials Mutant | -10/Mines Mutant | -10/Exiles Mutant | -9/Mines Hacker-Mutant | -8/Materials Mutant | -7/Factory Mutant | -7/DSF Hacker-Mutant | -6/Factory Hacker-Mutant | -5/Factory Hacker-Mutant | -5/DSF Hacker-Mutant | -4/Factory Wizard-Mutant | -3/Research Wizard-Mutant | -3/Quarantine Wizard-Mutant | -2/Research Wizard-Mutant | -2/Testing Resources | -11 -10 -10 -10 -9 -8 -7 -7 -6 -5 -5 -4 -3 -3 -2 -2 ----------- Run | Yrd Mat Min Exi Min Mat Fac DSF Fac Fac DSF Fac Res Qua Res Tes Matter Collected 803 | 200 . . 60 . 30 . . . . . 26 36 154 160 137 Remotely . | . . . . . . . . . . . . . . . . Salvage Created 930 | . . . 167 21 48 . . . . . 12 36 . 306 340 Parts 52 | . . . 3 . . . . . . . 1 1 . 21 26 Haulers Intercepted . | . . . . . . . . . . . . . . . . Recyclers Shooed . | . . . . . . . . . . . . . . . . Parts Field Recycled . | . . . . . . . . . . . . . . . . Retrieved Matter . | . . . . . . . . . . . . . . . . Parts Self-Destructed . | . . . . . . . . . . . . . . . . Prevented . | . . . . . . . . . . . . . . . . Kills | -11 -10 -10 -10 -9 -8 -7 -7 -6 -5 -5 -4 -3 -3 -2 -2 ------- Run | Yrd Mat Min Exi Min Mat Fac DSF Fac Fac DSF Fac Res Qua Res Tes Combat Hostiles Destroyed 6 | . . . . 1 1 . . . . . . . . 2 2 Melee 4 | . . . . . . . . . . . . . . 2 2 Classes Destroyed 8 | . . . . 1 1 . . . . . 1 1 . 2 2 Builder 2 | . . . . . . . . . . . 1 . . 1 . Recycler 1 | . . . . . . . . . . . . . . 1 . Operator 3 | . . . . . . . . . . . . 1 . 2 . Swarmer 2 | . . . . . . . . . . . . . . 2 . Grunt 1 | . . . . 1 . . . . . . . . . . . Researcher 3 | . . . . . . . . . . . . . . . 3 Sentry 1 | . . . . . 1 . . . . . . . . . . Programmer 2 | . . . . . . . . . . . . . . . 2 Best Kill Streak 3 | . . . . 1 1 . . . . . 1 . . 3 3 Combat Bots Only 2 | . . . . 1 1 . . . . . . . . 2 2 Max Kills in Single Turn 1 | . . . . 1 1 . . . . . 1 1 . 1 1 Gunslinging . | . . . . . . . . . . . . . . . . Exploded . | . . . . . . . . . . . . . . . . Melee 1 | . . . . . . . . . . . . . . 1 1 Uniques/NPCs Destroyed . | . . . . . . . . . . . . . . . . Combat | -11 -10 -10 -10 -9 -8 -7 -7 -6 -5 -5 -4 -3 -3 -2 -2 -------- Run | Yrd Mat Min Exi Min Mat Fac DSF Fac Fac DSF Fac Res Qua Res Tes Hostile Shots Fired 456 | . . 22 . . 60 . 37 1 . 23 17 66 49 42 139 Missed 188 | . . 5 . . 20 . 18 1 . 8 11 35 23 22 45 Damage Taken 4740 | . . 144 . . 561 . 244 146 . 269 137 456 498 455 1830 Core 2979 | . . 52 . . 440 . 184 51 . 144 67 319 271 290 1161 Absorbed by Shields 92 | . . . . . . . 15 . . 16 . . 61 . . Ignored by Resistances 14 | . . . . . . . . . . 14 . . . . . Core Remaining (%) 74 | 100 . . . 79 20 . 73 94 . 85 94 . 47 . . Volleys Fired 50 | . . 1 . . . . . 19 . . 15 13 . . 2 Largest 1 | . . 1 . . . . . 1 . . 1 1 . . 1 Hottest 100 | . . 100 . . . . . 39 . . 40 40 . . 90 Shots Fired 50 | . . 1 . . . . . 19 . . 15 13 . . 2 Gun 29 | . . . . . . . . . . . 15 13 . . 1 Cannon . | . . . . . . . . . . . . . . . . Launcher 3 | . . . . . . . . 3 . . . . . . . Special 18 | . . 1 . . . . . 16 . . . . . . 1 Kinetic . | . . . . . . . . . . . . . . . . Thermal 30 | . . 1 . . . . . . . . 15 13 . . 1 Explosive 3 | . . . . . . . . 3 . . . . . . . Electromagnetic . | . . . . . . . . . . . . . . . . Robot Hit Streak 8 | . . . . . . . . 8 . . 8 5 . . 6 Robot Miss Streak 3 | . . 1 . . . . . 3 . . 2 2 . . . Penetration Max . | . . . . . . . . . . . . . . . . Secondary Targets . | . . . . . . . . . . . . . . . . Shots Hit Robots 77 | . . . 8 1 8 . 1 12 . . 12 10 . 11 14 Core Hits 22 | . . . 1 . . . 1 . . . 4 5 1 4 6 Critical Kills . | . . . . . . . . . . . . . . . . Critical Parts Destroyed 3 | . . . 2 . . . 1 . . . . . . . . Critical Strikes 4 | . . . 2 . . . 1 . . . . . . . 1 Smash 3 | . . . 2 . . . 1 . . . . . . . . Sever 1 | . . . . . . . . . . . . . . . 1 Melee Attacks 89 | . . . 43 3 15 . 1 . . . . . . 12 15 Impact 62 | . . . 43 3 15 . 1 . . . . . . . . Slashing 22 | . . . . . . . . . . . . . . 7 15 Piercing 5 | . . . . . . . . . . . . . . 5 . Sneak Attacks 5 | . . . . . . . . . . . . . . 2 3 Combat Hostiles . | . . . . . . . . . . . . . . . . Follow-up Attacks . | . . . . . . . . . . . . . . . . Damage Inflicted 3445 | . . . 741 67 330 . 48 . . . 157 130 53 783 1136 Guns 286 | . . . . . . . . . . . 156 130 . . . Cannons . | . . . . . . . . . . . . . . . . Explosions . | . . . . . . . . . . . . . . . . Melee 3085 | . . . 741 67 330 . 37 . . . . . . 783 1127 Ramming 74 | . . . . . . . 11 . . . 1 . 53 . 9 Kinetic . | . . . . . . . . . . . . . . . . Thermal 286 | . . . . . . . . . . . 156 130 . . . Explosive . | . . . . . . . . . . . . . . . . Electromagnetic . | . . . . . . . . . . . . . . . . Impact 1175 | . . . 741 67 330 . 37 . . . . . . . . Slashing 1507 | . . . . . . . . . . . . . . 380 1127 Piercing 403 | . . . . . . . . . . . . . . 403 . Highest Corruption 4 | . . . . . . . 1 . . . . . . . 4 Average Corruption 1 | . . . . . . . 1 . . . . . . . 2 Corruption Purged . | . . . . . . . . . . . . . . . . Corruption Blocked . | . . . . . . . . . . . . . . . . Overload Shots . | . . . . . . . . . . . . . . . . Overflow Damage 814 | . . . 455 7 39 . 37 . . . . . . 126 150 Projectiles 42 | . . . 42 . . . . . . . . . . . . Explosions . | . . . . . . . . . . . . . . . . Melee 772 | . . . 413 7 39 . 37 . . . . . . 126 150 Knockbacks 8 | . . . 4 1 1 . . . . . . . 2 . . Impact 7 | . . . 3 1 1 . . . . . . . 2 . . Kinetic . | . . . . . . . . . . . . . . . . Secondary 1 | . . . 1 . . . . . . . . . . . . Self-Inflicted Damage 32 | . . . . . . . 4 . . . . . 25 . 3 Shots . | . . . . . . . . . . . . . . . . Rammed 16 | . . . . . . . 4 . . . 1 . 5 . 6 Targets Rammed 16 | . . . . . . . 4 . . . 1 . 5 . 6 Kicked . | . . . . . . . . . . . . . . . . Crushed . | . . . . . . . . . . . . . . . . Highest Temperature 24 | . . 24 . . 8 . . . . . . . . . . Average Temperature 12 | . . 13 . . 8 . . . . . . . . . . Received Heat Transfer 409 | . . . . . 261 . . . . 58 9 42 12 27 . Siege Activations . | . . . . . . . . . . . . . . . . Robots Corrupted . | . . . . . . . . . . . . . . . . Combat Hostiles . | . . . . . . . . . . . . . . . . Parts Fried 2 | . . . 2 . . . . . . . . . . . . Impact Corruptions 13 | . . . 9 1 2 . 1 . . . . . . . . Robots Melted . | . . . . . . . . . . . . . . . . Combat Hostiles . | . . . . . . . . . . . . . . . . Parts Melted 2 | . . . . . . . . . . . . 2 . . . Heat Transferred 814 | . . . . . . . . . . . 444 370 . . . Parts Sabotaged . | . . . . . . . . . . . . . . . . Parts Stolen . | . . . . . . . . . . . . . . . . Parts Stripped . | . . . . . . . . . . . . . . . . Power Chain Reactions . | . . . . . . . . . . . . . . . . Alert | -11 -10 -10 -10 -9 -8 -7 -7 -6 -5 -5 -4 -3 -3 -2 -2 ------- Run | Yrd Mat Min Exi Min Mat Fac DSF Fac Fac DSF Fac Res Qua Res Tes Peak Influence 312 | . . 16 . 128 312 157 109 126 29 35 124 159 130 263 257 Initial 147 | . . . . . 49 141 109 51 14 20 . 59 83 58 147 Average 101 | . . 2 . 121 142 142 103 66 15 22 72 115 104 124 211 Maximum Alert Level 1 | . . . . . 1 . . . . . . . . 1 1 Low Security (%) 89 | . 100 100 . 100 80 100 100 100 100 100 100 100 100 78 32 Level 1 10 | . . . . . 19 . . . . . . . . 21 67 Level 2 . | . . . . . . . . . . . . . . . . Level 3 . | . . . . . . . . . . . . . . . . Level 4 . | . . . . . . . . . . . . . . . . Level 5 . | . . . . . . . . . . . . . . . . High Security . | . . . . . . . . . . . . . . . . Max Security . | . . . . . . . . . . . . . . . . Squads Dispatched 11 | . . . . . 2 . 1 1 . 1 2 2 1 . 1 Investigation 3 | . . . . . 2 . . . . . . 1 . . . Extermination 1 | . . . . . . . . . . . 1 . . . . Reinforcement 6 | . . . . . . . 1 1 . 1 1 1 1 . . Assault 1 | . . . . . . . . . . . . . . . 1 Garrison . | . . . . . . . . . . . . . . . . Intercept . | . . . . . . . . . . . . . . . . Searches Triggered . | . . . . . . . . . . . . . . . . Construction Impeded . | . . . . . . . . . . . . . . . . Haulers Reinforced . | . . . . . . . . . . . . . . . . Active Scanning Responses . | . . . . . . . . . . . . . . . . Cargo Convoy Interrupts . | . . . . . . . . . . . . . . . . Stealth | -11 -10 -10 -10 -9 -8 -7 -7 -6 -5 -5 -4 -3 -3 -2 -2 --------- Run | Yrd Mat Min Exi Min Mat Fac DSF Fac Fac DSF Fac Res Qua Res Tes Distress Signals 4 | . . . . . 2 . . . . . . . 1 . 1 Communications Jammed 2 | . . . . . . . . . . . 2 . . . . Distress Signals 2 | . . . . . . . . . . . 2 . . . . Times Spotted 106 | . 1 3 . 3 25 . 4 5 . 5 10 12 14 17 7 Peak Tracking Total 13 | . 1 3 . 3 12 . 4 5 . 6 7 11 13 9 6 Tactical Retreats 9 | . . . . . 3 . . . . 1 . 1 . 4 . Traps | -11 -10 -10 -10 -9 -8 -7 -7 -6 -5 -5 -4 -3 -3 -2 -2 ------- Run | Yrd Mat Min Exi Min Mat Fac DSF Fac Fac DSF Fac Res Qua Res Tes Traps Triggered 8 | . . . . . . . 1 1 . 3 . 1 1 . 1 Indirectly . | . . . . . . . . . . . . . . . . Trap Hack Attempts . | . . . . . . . . . . . . . . . . Triggered . | . . . . . . . . . . . . . . . . Disarmed . | . . . . . . . . . . . . . . . . Reprogrammed . | . . . . . . . . . . . . . . . . Reused . | . . . . . . . . . . . . . . . . Traps Extracted . | . . . . . . . . . . . . . . . . Installed 2 | . . . . . . . . . . 1 . 1 . . . Triggered . | . . . . . . . . . . . . . . . . Most Traps Carried 5 | . . . . . . . . . . 5 1 1 . . . Machines | -11 -10 -10 -10 -9 -8 -7 -7 -6 -5 -5 -4 -3 -3 -2 -2 ---------- Run | Yrd Mat Min Exi Min Mat Fac DSF Fac Fac DSF Fac Res Qua Res Tes Machines Disabled 5 | . . . 1 2 . . . . . . . . . . 2 Max in Single Turn 1 | . . . 1 . . . . . . . . . . . 1 Machines Repaired . | . . . . . . . . . . . . . . . . Machines Dismantled . | . . . . . . . . . . . . . . . . Machines Sabotaged . | . . . . . . . . . . . . . . . . Overloaded Fab Kills . | . . . . . . . . . . . . . . . . Hacking | -11 -10 -10 -10 -9 -8 -7 -7 -6 -5 -5 -4 -3 -3 -2 -2 --------- Run | Yrd Mat Min Exi Min Mat Fac DSF Fac Fac DSF Fac Res Qua Res Tes Machines Accessed 50 | . 2 . 3 . 6 5 . 8 2 . 8 7 3 2 4 Terminals 38 | . 2 . . . 6 4 . 7 2 . 6 3 3 2 3 Fabricators 4 | . . . . . . 1 . 1 . . 1 1 . . . Repair Stations 2 | . . . . . . . . . . . 1 1 . . . Recycling Units 1 | . . . . . . . . . . . . 1 . . . Scanalyzers 1 | . . . . . . . . . . . . . . . 1 Garrison Access 1 | . . . . . . . . . . . . 1 . . . Total Hacks 200 | . 6 . 36 . 19 12 . 20 8 . 38 21 6 16 18 Successful 132 | . . . 36 . 5 6 . 11 5 . 26 18 5 8 12 Failed 68 | . 6 . . . 14 6 . 9 3 . 12 3 1 8 6 Catastrophic 16 | . . . . . 4 1 . 4 3 . 3 . 1 . . Database Lockouts . | . . . . . . . . . . . . . . . . Manual 106 | . 6 . . . 14 4 . 14 6 . 31 17 2 11 1 Terminals 136 | . 6 . . . 19 10 . 17 8 . 33 9 6 16 12 Fabricators 12 | . . . . . . 2 . 3 . . 4 3 . . . Repair Stations 3 | . . . . . . . . . . . 1 2 . . . Recycling Units 4 | . . . . . . . . . . . . 4 . . . Scanalyzers 6 | . . . . . . . . . . . . . . . 6 Garrison Access 3 | . . . . . . . . . . . . 3 . . . Terminal Hacks 86 | . . . 36 . 4 5 . 5 5 . 15 1 4 5 6 Record 42 | . . . 36 . . . . . . . . . 3 1 2 Robot Analysis 1 | . . . . . 1 . . . . . . . . . . Prototype ID Bank 1 | . . . . . . . . . . . 1 . . . . Open DSF 4 | . . . . . . 1 . 1 1 . 1 . . . . Level Access Points 3 | . . . . . . . . 1 . . 1 . . 1 . Branch Access Points 3 | . . . . . 1 . . 1 . . . . . 1 . Machine Index 1 | . . . . . . . . . . . 1 . . . . Terminal Index 4 | . . . . . . . . 1 1 . 1 . . 1 . Fabricator Index 2 | . . . . . . . . . . . 1 1 . . . Repair Station Index 1 | . . . . . . . . . . . 1 . . . . Alert Level 1 | . . . . . . 1 . . . . . . . . . Unreport Threat 1 | . . . . . 1 . . . . . . . . . . Locate Traps 3 | . . . . . . 1 . 1 . . 1 . . . . Dispatch Records 2 | . . . . . . 1 . . . . . . . 1 . Maintenance Status 1 | . . . . . . . . . . . 1 . . . . Security Status 1 | . . . . . . . . . . . 1 . . . . Patrol Status 1 | . . . . . . . . . . . 1 . . . . Investigation Status 1 | . . . . . . . . . . . 1 . . . . Recall Investigation 1 | . . . . . 1 . . . . . . . . . . Recall Reinforcements 1 | . . . . . . . . . . . 1 . . . . Hauler Manifests 1 | . . . . . . . . . . . 1 . . . . Registered Components 2 | . . . . . . . . . 1 . 1 . . . . Zone Layout 5 | . . . . . . 1 . . 2 . . . 1 . 1 Protovariant Controls 3 | . . . . . . . . . . . . . . . 3 Fabricator Hacks 3 | . . . . . . 1 . 1 . . 1 . . . . Network Status 2 | . . . . . . 1 . 1 . . . . . . . Build 1 | . . . . . . . . . . . 1 . . . . Repair Station Hacks 2 | . . . . . . . . . . . 1 1 . . . Refit 2 | . . . . . . . . . . . 1 1 . . . Recycling Unit Hacks 2 | . . . . . . . . . . . . 2 . . . Report Inventory 1 | . . . . . . . . . . . . 1 . . . Retrieve Matter 1 | . . . . . . . . . . . . 1 . . . Scanalyzer 6 | . . . . . . . . . . . . . . . 6 Insert Component 2 | . . . . . . . . . . . . . . . 2 Analyze 4 | . . . . . . . . . . . . . . . 4 Garrison Access Hacks . | . . . . . . . . . . . . . . . . Unauthorized Hacks 33 | . . . . . 1 . . 5 . . 9 14 1 3 . Terminals 19 | . . . . . 1 . . 3 . . 6 5 1 3 . Assimilate 2 | . . . . . 1 . . . . . . 1 . . . Botnet 13 | . . . . . . . . 2 . . 5 3 1 2 . Operators 4 | . . . . . . . . 1 . . 1 1 . 1 . Fabricators 8 | . . . . . . . . 2 . . 3 3 . . . Report 3 | . . . . . . . . 1 . . 1 1 . . . Prioritize 1 | . . . . . . . . . . . 1 . . . . Fabnet 1 | . . . . . . . . . . . . 1 . . . Haulers 3 | . . . . . . . . 1 . . 1 1 . . . Repair Stations 1 | . . . . . . . . . . . . 1 . . . Mechanics 1 | . . . . . . . . . . . . 1 . . . Recycling Units 2 | . . . . . . . . . . . . 2 . . . Monitor 1 | . . . . . . . . . . . . 1 . . . Mask 1 | . . . . . . . . . . . . 1 . . . Scanalyzers . | . . . . . . . . . . . . . . . . Garrison Access 3 | . . . . . . . . . . . . 3 . . . Broadcast 1 | . . . . . . . . . . . . 1 . . . Reprogram 1 | . . . . . . . . . . . . 1 . . . Watchers 1 | . . . . . . . . . . . . 1 . . . Data Cores Recovered 2 | . . . . . . . . . . . . . . 2 . Used 1 | . . . . . . . . . . . . . . 1 . Hacking Detections 37 | . 2 . . . 5 3 . 5 1 . 7 6 2 2 4 Full Trace Events 1 | . . . . . 1 . . . . . . . . . . Feedback Events . | . . . . . . . . . . . . . . . . Feedback Blocked . | . . . . . . . . . . . . . . . . Robot Schematics Acquired 1 | . . . . . . . . . . . . . . . 1 Robots Built 1 | . . . . . . . . . . . 1 . . . . Authchips . | . . . . . . . . . . . . . . . . Time 40 | . . . . . . . . . . . 40 . . . . Total Robot Build Rating 1 | . . . . . . . . . . . 1 . . . . Part Schematics Acquired 6 | . . . . . . . . . . . . . . . 6 Parts Built . | . . . . . . . . . . . . . . . . Authchips . | . . . . . . . . . . . . . . . . Time . | . . . . . . . . . . . . . . . . Total Part Build Rating . | . . . . . . . . . . . . . . . . Parts Repaired . | . . . . . . . . . . . . . . . . Time . | . . . . . . . . . . . . . . . . Parts Recycled . | . . . . . . . . . . . . . . . . Recycled Matter . | . . . . . . . . . . . . . . . . Retrieved Matter . | . . . . . . . . . . . . . . . . Retrieved Components . | . . . . . . . . . . . . . . . . Parts Scanalyzed 1 | . . . . . . . . . . . . . . . 1 Part Schematics Acquired . | . . . . . . . . . . . . . . . . Parts Damaged . | . . . . . . . . . . . . . . . . Bothacking | -11 -10 -10 -10 -9 -8 -7 -7 -6 -5 -5 -4 -3 -3 -2 -2 ------------ Run | Yrd Mat Min Exi Min Mat Fac DSF Fac Fac DSF Fac Res Qua Res Tes Used RIF Installer . | . . . . . . . . . . . . . . . . Robots Hacked 5 | . . . . . . . . 4 . . . . . . 1 Non-combat 5 | . . . . . . . . 4 . . . . . . 1 Combat . | . . . . . . . . . . . . . . . . Robot Hacks Applied 11 | . . . . . . . . 10 . . . . . . 1 parse_system 5 | . . . . . . . . 5 . . . . . . . no_distress 3 | . . . . . . . . 2 . . . . . . 1 find_fabricator 1 | . . . . . . . . 1 . . . . . . . find_dsf 1 | . . . . . . . . 1 . . . . . . . check_alert 1 | . . . . . . . . 1 . . . . . . . Relay Couplers Released . | . . . . . . . . . . . . . . . . Fabnet Peak Effective % 3 | . . . . . . . . . . . . . . 3 3 Robots Rewired 4 | . . . 4 . . . . . . . . . . . . Allies Hacked . | . . . . . . . . . . . . . . . . Hacks Repelled . | . . . . . . . . . . . . . . . . Allies | -11 -10 -10 -10 -9 -8 -7 -7 -6 -5 -5 -4 -3 -3 -2 -2 -------- Run | Yrd Mat Min Exi Min Mat Fac DSF Fac Fac DSF Fac Res Qua Res Tes Total Allies 7 | . . . 4 . 1 . . . . . 1 1 . . . Largest Group 4 | . . . 4 3 3 1 1 . . . 1 1 . . . Highest-Rated Group 58 | . . . 58 50 50 10 10 . . . 6 45 . . . Highest-Rated Ally 45 | . . . 21 21 21 10 10 . . . 6 45 . . . Total Orders . | . . . . . . . . . . . . . . . . Ally Attacks 45 | . . . . 11 34 . . . . . . . . . . Total Damage 951 | . . . . 348 603 . . . . . . . . . . Kills 11 | . . . . 2 9 . . . . . . . . . . Allies Corrupted . | . . . . . . . . . . . . . . . . Allies Melted . | . . . . . . . . . . . . . . . . Intel | -11 -10 -10 -10 -9 -8 -7 -7 -6 -5 -5 -4 -3 -3 -2 -2 ------- Run | Yrd Mat Min Exi Min Mat Fac DSF Fac Fac DSF Fac Res Qua Res Tes Robot Analysis Total 1 | . . . . . 1 . . . . . . . . . . Derelict Logs Recovered 2 | . . 1 . 1 . . . . . . . . . . . Drone Launches . | . . . . . . . . . . . . . . . . Drone Recoveries . | . . . . . . . . . . . . . . . . Exploration | -11 -10 -10 -10 -9 -8 -7 -7 -6 -5 -5 -4 -3 -3 -2 -2 ------------- Run | Yrd Mat Min Exi Min Mat Fac DSF Fac Fac DSF Fac Res Qua Res Tes Turns Passed 2880 | . 82 109 518 99 235 148 57 413 25 101 291 249 143 172 238 Spaces Moved 4997 | 1 159 259 689 174 359 269 62 862 67 93 575 497 331 301 299 Core 1145 | . . . 344 . 328 269 62 97 . . . . . 11 34 Treads . | . . . . . . . . . . . . . . . . Legs 11 | 1 10 . . . . . . . . . . . . . . Wheels . | . . . . . . . . . . . . . . . . Hover 143 | . . . . . . . . . . . . . . . 143 Flight 3698 | . 149 259 345 174 31 . . 765 67 93 575 497 331 290 122 Fastest Speed 37 | 120 40 40 40 40 40 50 50 37 37 37 37 37 37 37 40 Average Speed 41 | 120 45 40 44 40 49 50 50 38 37 37 37 37 38 39 50 Slowest Speed 150 | 120 120 40 50 40 50 50 50 50 37 37 37 37 40 50 150 Overloaded Moves . | . . . . . . . . . . . . . . . . Propulsion Burnouts . | . . . . . . . . . . . . . . . . Robots Hopped 49 | . 2 . 4 . . . . 4 . . 11 15 12 1 . Cave-ins Triggered 1 | . . . . . . . . 1 . . . . . . . Teleports 1 | . . . . . . . . . . . . . 1 . . Exploration Rate (%) 33 | 2 37 60 91 43 48 10 49 28 2 71 12 16 41 10 18 Regions Visited 15 Branch Regions 5 Pre-discovered Areas 1 | . . . 1 . . . . . . . . . . . . Known Exits Taken 5 | . . . . . . 1 . 1 1 . 1 . . 1 . Unknown Exits Taken 8 | 1 1 1 1 1 1 . . . . . . 1 1 . . Scrap Searched 2 | . . 1 . 1 . . . . . . . . . . . Spaces Dug 54 | . . . 3 . 1 . . 49 . . . . . 1 . Terrain Destroyed 55 | . . 1 3 . 1 . . 49 . . . . . 1 . Melee 5 | . . . 3 . 1 . . . . . . . . 1 . Projectile 1 | . . 1 . . . . . . . . . . . . . AOE 49 | . . . . . . . . 49 . . . . . . . Terrain Rammed . | . . . . . . . . . . . . . . . . Walls Destroyed . | . . . . . . . . . . . . . . . . Machines Disabled . | . . . . . . . . . . . . . . . . Actions | -11 -10 -10 -10 -9 -8 -7 -7 -6 -5 -5 -4 -3 -3 -2 -2 --------- Run | Yrd Mat Min Exi Min Mat Fac DSF Fac Fac DSF Fac Res Qua Res Tes Total 5584 | . 170 260 848 200 402 282 85 924 66 163 627 532 334 331 360 Wait 194 | . . 1 15 22 23 2 . 32 . . 44 22 3 6 24 Move 4889 | . 154 258 680 173 358 268 61 852 66 92 553 470 307 298 299 Hop 44 | . 2 . 4 . . . . 4 . . 11 11 11 1 . Pick Up 24 | . . . 2 1 . 4 . 1 . 9 . 5 . . 2 Fast Attach 48 | . 2 . 2 . 3 3 4 9 . . 1 4 3 9 8 Attach 16 | . 1 . 1 . . 1 . 3 . . 2 3 . 3 2 Detach 9 | . 4 . . . 1 . . 1 . . . 1 . 1 1 Swap 1 | . 1 . . . . . . . . . . . . . . Drop 33 | . 6 . 1 1 2 4 2 2 . 9 1 2 1 1 1 Fire 50 | . . 1 . . . . . 19 . . 15 13 . . 2 Melee 89 | . . . 43 3 15 . 1 . . . . . . 12 15 Ram 15 | . . . . . . . 4 . . . . . 5 . 6 Kick . | . . . . . . . . . . . . . . . . Crush . | . . . . . . . . . . . . . . . . Escape Stasis 70 | . . . . . . . 13 1 . 52 . . 4 . . Rewire 100 | . . . 100 . . . . . . . . . . . . Trap 2 | . . . . . . . . . . 1 . 1 . . . Miscellaneous . | . . . . . . . . . . . . . . . . Route ------- -11/Scrapyard -10/Materials (discovered 2 exits: [*Mat] / [*Min]) -10/Mines (discovered 2 exits: [*Mat] / *Exi) -10/Exiles -9/Mines -8/Materials -7/Factory (discovered 2 exits: [Low] / DSF) -7/DSF -6/Factory (discovered 6 exits: *Fac x4 / Low x2) -5/Factory -5/DSF -4/Factory (discovered 4 exits: *Res x4) -3/Research -3/Quarantine -2/Research (discovered 5 exits: Acc x3 / *Tes x2) -2/Testing History --------- Turn | Location | Event 1 | -11/Scrapyard | Discovered new exit (range 0) 1 | -11/Scrapyard | Entered Materials 55 | -10/Materials | Discovered new exit (range 3) 74 | -10/Materials | Discovered new exit (range 14) 83 | -10/Materials | Entered Mines 153 | -10/Mines | Learned 2 Materials zone layouts 173 | -10/Mines | Discovered new exit (range 12) 190 | -10/Mines | Deemed a non-threat by the Exiles lab entrance 190 | -10/Mines | Discovered new exit (range 5) 192 | -10/Mines | Entered Exiles 192 | -10/Exiles | Found Exiles lab destroyed 265 | -10/Exiles | Learned location of Zion (-6) 308 | -10/Exiles | Build established: Mutant 689 | -10/Exiles | Discovered new exit (range 12) 710 | -10/Exiles | Entered Mines 710 | -9/Mines | Accompanied by 4 allies 740 | -9/Mines | A weapon hastily lodged in a ceiling crevice suddenly fell to the ground 765 | -9/Mines | Learned Materials interactive machine intel 782 | -9/Mines | Discovered new exit (range 7) 809 | -9/Mines | Entered Materials 809 | -8/Materials | Accompanied by 3 allies 809 | -8/Materials | Evolved 4 slots: Utility x4 811 | -8/Materials | Loaded intel: 18 interactive machine locations 982 | -8/Materials | Core integrity fell below 50% 1039 | -8/Materials | Discovered new exit (range 10) 1044 | -8/Materials | Entered Factory 1044 | -7/Factory | Accompanied by 1 ally 1044 | -7/Factory | Evolved 2 slots: Utility x2 1175 | -7/Factory | Discovered new exit (range 15) 1190 | -7/Factory | Identified exit to DSF 1192 | -7/Factory | Entered DSF 1192 | -7/DSF | Accompanied by 1 ally 1227 | -7/DSF | Additional patrols routed to DSF 1242 | -7/DSF | Discovered new exit (range 16) 1249 | -7/DSF | Entered Factory 1249 | -6/Factory | Evolved 2 slots: Utility x2 1452 | -6/Factory | Crushed by falling debris 1454 | -6/Factory | Identified exit to Lower Caves 1454 | -6/Factory | Identified exit to Factory 1566 | -6/Factory | Build established: Hacker-Mutant 1662 | -6/Factory | Entered another Factory area 1662 | -5/Factory | Evolved 2 slots: Utility x2 1682 | -5/Factory | Identified exit to DSF 1687 | -5/Factory | Entered DSF 1759 | -5/DSF | Additional patrols routed to DSF 1783 | -5/DSF | Discovered new exit (range 14) 1788 | -5/DSF | Entered Factory 1788 | -4/Factory | Evolved 2 slots: Utility x2 1819 | -4/Factory | Lost 4 parts (3u1w) 1922 | -4/Factory | Discovered new exit (range 15) 2003 | -4/Factory | Identified exit to Research 2034 | -4/Factory | Fabricated K-01 Serf (x1) 2079 | -4/Factory | Entered Research 2079 | -3/Research | Evolved 2 slots: Utility x2 2202 | -3/Research | Found Prototype Slashing Weapon 2204 | -3/Research | Found Prototype Slashing Weapon 2322 | -3/Research | Discovered new exit (range 16) 2328 | -3/Research | Entered Quarantine 2391 | -3/Quarantine | Build established: Wizard-Mutant 2402 | -3/Quarantine | Found Alien Artifact 2402 | -3/Quarantine | Identified Hpw. Transdimensional Reconstructor 2402 | -3/Quarantine | Warped through subspace 2443 | -3/Quarantine | Lost 3 parts (1n2u) 2456 | -3/Quarantine | Discovered new exit (range 16) 2470 | -3/Quarantine | Core integrity fell below 50% 2471 | -3/Quarantine | Entered Research 2471 | -2/Research | Evolved 2 slots: Utility x2 2555 | -2/Research | Identified Nanosword (x2) 2599 | -2/Research | Lost 6 parts (2n4u) 2615 | -2/Research | Discovered new exit (range 16) 2624 | -2/Research | Identified exit to Access 2624 | -2/Research | Identified exit to Testing 2643 | -2/Research | Entered Testing 2699 | -2/Testing | Found Prototype Energy Gun 2699 | -2/Testing | Identified Warp Gun 2779 | -2/Testing | Protovariant out of control (PG-BJUWIWU09M) 2779 | -2/Testing | Unleashed a protovariant (PG-BJUWIWU09M) 2843 | -2/Testing | Core integrity fell below 50% 2864 | -2/Testing | Found Prototype Hackware 2864 | -2/Testing | Identified Ghost Barrier 2875 | -2/Testing | Core integrity fell below 20% 2881 | -2/Testing | Destroyed by H-88 Terminator with KE Penetrator Last Messages --------------- 02850_ Slug penetrates Wall. 02857_ Sneak attack on C-65 Expert. 02857_ C-65 Expert destroyed. 02858_ Extracted schematic archive: Adv. Quantum Shading Machine. 02861_ Reinforced Shell breached. 02861_ Slug penetrates Wall. 02863_ Imp. Hacking Suite destroyed. 02864_ Acquired Prototype Hackware. 02864_ Identified Ghost Barrier. 02866_ Slug penetrates Wall. 02870_ Wall collapses. 02872_ Destroyed Gamma Rifle. 02874_ Slug penetrates Wall. 02875_ Destroyed Imp. Antigrav System. 02877_ Destroyed Gamma Rifle. 02877_ Slug penetrates Wall. 02879_ Terrain Scan Processor destroyed. 02880_ Destroyed Sml. Battery. 02880_ Slug penetrates Wall. Map ----- +----------------------------------------------------+ | # + ????????? | | # """""" # ????????? | | ??"""""" # ????????? | | ???"""""?# ###########??????????? | | ??? ?# #????????????????????? | | ???""""??# #????????????????????? | | ???""""??# #????????????????????? | | ????""???# #????????????????????? | | ?????????# #????????????????????? | | ?????????# #????????????????????? | | ?????????# #????????????????????? | | ?????????# #????????????????????? | | ?????????# #????????????????????? | | ?????????# #????????????????????? | | ?????????# #????????????????????? | | ???????### ######+#########+#???? | | ???????# #???? | | ???????# * #???? | | ???????# ##########+#######???????? | | ????#### # ???# %%% % #???????? | | ????# # ???# """%#???????? | | ????# # """?# "" "" #???????? | | ????# # " "?#""" "" #???????? | | ????#### ; "" #"T """ #???????? | | ???????# # p #""" "" #???????? | | ???????# #@! " # "" "" #???????? | | ???????# |p $""" # #???????? | | ???????# #%"""" ##" "######???????? | | ???????# #$!"" ##"T"#????????????? | | ???????# #! ##"""#????????????? | | ???????# # ######????????????? | | ???????# # #?????????????????? | | ???????# ########?????????????????? | | ???????# #????????????????????????? | | ???????# #????????????????????????? | | ???????# ?????????????????????????? | | ???????# ?????????????????????????? | | ???????# ?????????????????????????? | | ???????# ?????????????????????????? | | ???????? ?????????????????????????? | | ???????? ?????????????????????????? | | ???????? ?????????????????????????? | | ???????????????????????????????????? | | ???????????????????????????????????? | | ???????????????????????????????????? | | ???????????????????????????????????? | | ???????????????????????????????????? | | ???????????????????????????????????? | | ???????????????????????????????????? | | ???????????????????????????????????? | +----------------------------------------------------+ Best States ------------- Heat Dissipation 49 Energy Generation 19 Energy Capacity 300 Matter Stores 300 Matter Capacity 300 Sight Range 16 Robot Scan Range 16 Terrain Scan Range 14 Terrain Scan Density 335 Jamming Range 14 Corruption Containment 12 Resistance: KI 20 Evasion (%) 72 Melee Accuracy 32 Launcher Accuracy 20 Offensive Hacking 60 Defensive Hacking 40 Item Schematics ----------------- Exp. Cooling System | -2/Testing | Archive Adv. Myomer Leg | -2/Testing | Archive Lrn. Phase Cannon | -2/Testing | Archive Centrium Medium Armor Plating | -2/Testing | Archive Enh. Biometal Leg | -2/Testing | Archive Adv. Quantum Shading Machine | -2/Testing | Archive Robot Schematics ------------------ T-07 Excavator | -2/Testing | Archive Fabricated ------------ K-01 Serf | x1 | -4/Factory | Preloaded Alien Tech Used ----------------- High-powered Transdimensional Reconstructor Achievements -------------- Rampage Challenges ------------ None Game ------ Seed DisposableGravmagUnit Manual? 0 Play Time 01:12:06 Cumulative 144.1 hours Start 2024.03.07 @ 21:06:53 End 2024.03.07 @ 22:40:02 Sessions 1 Manual Loads 0 Difficulty Rogue Special Mode None Game No. 157 Rogue 157 Adventurer 0 Explorer 0 Win Type - Total 0 Types 0/0/0/0/0/0/0/0/0 Lore% 50 Gallery% 67 Achievement% 54 Wizard Run 0 Options --------- Layout 1 ASCII 0 Keyboard 0 Movement Numpad Keybinds 0 Fullscreen 1 Font 24/Smallcaps Map View 50x35 Zoom Use 0% Tactical HUD 1 Map Filters NONE Filters NONE Steam 1 RUN: b66881d0-1501-4f3d-87a7-2bf73683b454